Cogmind - Beta 14 @@@ ROGUE MODE // 2024.09.29 @ 14:06:28 Player: s0lid Result: Destroyed by Y-54 Guardian with Flak Gun Performance ------------- Evolutions (3) 1500 Regions Visited (7) 1400 Robots Destroyed (70) 350 Value Destroyed (2039) 2039 Prototype IDs (8) 160 Alien Tech Used (0) 0 Bonus (0) 0 TOTAL SCORE: 5449 Bonus ------- None Cogmind --------- Core Integrity 0/700 Matter 142/300 Energy 290/290 System Corruption 5% Temperature Cool (-88) Movement Hovering (180) Ox2 Location -7/Lower Caves Parts ------- > --- POWER (1) -------- Reinforced Deuterium Engine > --- PROPULSION (4) --- Gravmag System > --- UTILITY (6) ------ Cryofiber Web Makeshift Salvage Targeting Computer Core Analyzer Armor Integrity Analyzer > --- WEAPON (2) ------- Shock Rifle > --- INVENTORY (5) ---- Cooling System Compact Matter Pod (108) Recalibrator Gauss Cannon Peak State ------------ > --- POWER ------------ Improved Deuterium Engine > --- PROPULSION ------- Armored Wheel Armored Wheel Armored Wheel Improved Cesium-ion Thruster > --- UTILITY ---------- Medium Storage Unit Seismic Detector Advanced Targeting Computer Advanced Targeting Computer Armor Integrity Analyzer Transmission Jammer > --- WEAPON ----------- Hypervelocity Mass Driver Hypervelocity Mass Driver > --- INVENTORY -------- Micro Nuclear Core Cooled Airjet Cooled Airjet Cooled Airjet Cooling System Compact Matter Pod Improved Light Armor Plating Enhanced Autogun Heavy Missile Launcher Precision Grenade Launcher [Rating: 49] Favorites ----------- Power Light Nuclear Core Engine Light Ion Engine Power Core Light Nuclear Core Propulsion Armored Wheel Treads Light Treads Leg Aluminum Leg Wheel Armored Wheel Hover Unit Cooled Airjet Flight Unit Flight Unit Utility Advanced Targeting Computer Device Seismic Detector Storage Small Storage Unit Processor Advanced Targeting Computer Hackware Hacking Suite Protection Hardened Medium Armor Plating Weapon Spread Laser Energy Gun Spread Laser Energy Cannon Plasma Cannon Ballistic Gun Enhanced Autogun Ballistic Cannon Hypervelocity Mass Driver Launcher Heavy Missile Launcher Special Weapon Mining Laser Build | -11 -10 -10 -9 -8 -7 -7 -7 ------- Run | Yrd Mat Min Mat Mat Fac Low Low Slots Evolved 6 | . . . 2 2 2 . . Power . | . . . . . . . . Propulsion 2 | . . . 1 1 . . . Utility 4 | . . . 1 1 2 . . Weapon . | . . . . . . . . Parts Attached 113 | 6 14 7 5 53 26 2 . Power 11 | . 1 . 1 6 3 . . Engine 5 | . 1 . 1 1 2 . . Core 6 | . . . . 5 1 . . Reactor . | . . . . . . . . Propulsion 31 | 2 4 1 2 17 5 . . Treads 1 | . . . . 1 . . . Leg 4 | . . . . 4 . . . Wheel 9 | 2 . . . 7 . . . Hover 7 | . . . . 3 4 . . Flight 10 | . 4 1 2 2 1 . . Utility 28 | 1 4 2 . 13 6 2 . Device 13 | 1 . 2 . 6 4 . . Storage 4 | . 2 . . 2 . . . Processor 5 | . . . . 2 1 2 . Hackware 1 | . . . . 1 . . . Protection 5 | . 2 . . 2 1 . . Artifact . | . . . . . . . . Weapon 43 | 3 5 4 2 17 12 . . Energy Gun 20 | . 3 1 1 12 3 . . Energy Cannon 1 | . . . . . 1 . . Ballistic Gun 9 | 3 2 . . 2 2 . . Ballistic Cannon 4 | . . . . . 4 . . Launcher 5 | . . . . 3 2 . . Special Weapon 4 | . . 3 1 . . . . Impact Weapon . | . . . . . . . . Slashing Weapon . | . . . . . . . . Piercing Weapon . | . . . . . . . . Special Melee Weapon . | . . . . . . . . Unidentified Prototypes 6 | . . . . 4 2 . . Parts Lost 42 | . 2 2 1 19 16 . 2 Power 4 | . . . . 2 2 . . Propulsion 19 | . 2 1 1 10 3 . 2 Utility 8 | . . . . 3 5 . . Weapon 11 | . . 1 . 4 6 . . Highest Loss Streak 14 | . 2 2 1 6 14 . 2 To Critical Strikes 1 | . . . . 1 . . . Average Slot Usage (%) 82 | . 64 69 78 86 90 65 68 Engine 3 | . 3 . 11 3 4 7 7 Core 3 | . . . . 5 2 . . Leg 3 | . . . . 7 . . . Wheel 11 | . 10 . . 11 19 . . Hover 2 | . . . . 1 2 30 22 Flight 11 | . 13 28 33 8 6 . . Device 8 | . 1 9 11 6 13 7 7 Storage 8 | . 5 14 11 9 6 . . Processor 11 | . . . . 11 18 11 23 Hackware 1 | . . . . 4 . . . Protection 1 | . 7 . . 1 2 . . Energy Gun 10 | . 12 11 11 13 5 7 7 Ballistic Gun 1 | . 8 . . 1 . . . Ballistic Cannon 1 | . . . . . 5 . . Peak Build Rating 49 | 5 11 7 9 37 49 42 42 Average Rating 24 | 3 6 6 8 22 40 35 37 On Entrance 15 | . 5 6 6 8 27 33 42 Naked Turns . | . . . . . . . . Heaviest Build 46 | 4 21 8 12 32 46 19 19 Greatest Support 52 | 26 26 8 12 52 36 33 33 Greatest Overweight (x) 4 | 1 1 . . 4 4 . 1 Average Overweight (x) . | . . . . . . . . Largest Inventory Capacity 10 | 5 8 8 8 10 10 5 5 Average Capacity 8 | 5 6 8 8 8 9 5 5 Most Carried 10 | 5 8 8 7 10 10 4 4 Average Carried 7 | 2 5 7 5 7 8 2 4 Final Capacity 10 | 5 8 8 8 10 5 5 5 Final Carried 10 | 3 8 8 6 10 2 4 4 Class Distribution -------------------- 79% | Mutant 20% | Scavenger-Mutant Dominant Class ---------------- Mutant | -10/Materials Mutant | -10/Mines Scavenger-Mutant | -9/Materials Mutant | -8/Materials Mutant | -7/Factory Mutant | -7/Lower Caves Mutant | -7/Lower Caves Resources | -11 -10 -10 -9 -8 -7 -7 -7 ----------- Run | Yrd Mat Min Mat Mat Fac Low Low Matter Collected 1897 | 287 171 129 84 663 507 56 . Remotely . | . . . . . . . . Salvage Created 2324 | 93 245 . 35 1448 503 . . Parts 125 | 3 23 . 2 76 21 . . Haulers Intercepted 7 | . 1 . 1 4 1 . . Recyclers Shooed 5 | . . . . 5 . . . Parts Field Recycled . | . . . . . . . . Retrieved Matter . | . . . . . . . . Parts Self-Destructed . | . . . . . . . . Prevented 1 | . . . . . . 1 . Kills | -11 -10 -10 -9 -8 -7 -7 -7 ------- Run | Yrd Mat Min Mat Mat Fac Low Low Combat Hostiles Destroyed 50 | . 8 . . 32 10 . . Guns 34 | . 8 . . 23 3 . . Cannons 6 | . . . . . 6 . . AOE 9 | . . . . 8 1 . . Classes Destroyed 12 | 2 4 . . 5 1 . . Worker 3 | . . . . 2 1 . . Builder 1 | . . . . 1 . . . Tunneler 1 | 1 . . . . . . . Hauler 7 | . 1 . 1 4 1 . . Recycler 6 | 1 1 . . 3 1 . . Watcher 2 | . 1 . . 1 . . . Swarmer 14 | . 6 . . 8 . . . Grunt 23 | . 2 . . 15 6 . . Brawler 2 | . . . . 1 1 . . Duelist 1 | . . . . . 1 . . Sentry 7 | . . . . 6 1 . . Specialist 3 | . . . . 2 1 . . Best Kill Streak 8 | 1 4 . 1 8 2 . . Combat Bots Only 8 | . 4 . . 8 2 . . Max Kills in Single Turn 6 | 1 2 . 1 6 2 . . Gunslinging 1 | . 1 . . . . . . Exploded 5 | . . . . 5 1 . . Melee . | . . . . . . . . Uniques/NPCs Destroyed . | . . . . . . . . Combat | -11 -10 -10 -9 -8 -7 -7 -7 -------- Run | Yrd Mat Min Mat Mat Fac Low Low Hostile Shots Fired 611 | . 72 6 16 224 273 2 18 Missed 197 | . 18 3 9 69 90 2 6 Damage Taken 5655 | . 593 39 97 2146 2690 . 90 Core 1404 | . 185 . 52 464 697 . 6 Absorbed by Shields . | . . . . . . . . Regen/Repaired (Parts) 17 | . . . . 17 . . . Core Remaining (%) 57 | 100 . 26 87 15 . . . Volleys Fired 228 | 15 43 3 10 102 51 . 4 Largest 2 | 2 2 1 1 2 2 . 1 Hottest 146 | 40 88 100 100 130 146 . 50 Shots Fired 342 | 19 59 3 10 168 79 . 4 Gun 280 | 19 59 1 5 164 28 . 4 Cannon 46 | . . . . . 46 . . Launcher 9 | . . . . 4 5 . . Special 7 | . . 2 5 . . . . Kinetic 121 | 19 27 . . 27 48 . . Thermal 166 | . 32 2 10 96 26 . . Explosive 9 | . . . . 4 5 . . Electromagnetic 46 | . . 1 . 41 . . 4 Robot Hit Streak 17 | 4 4 . 6 17 11 . 2 Robot Miss Streak 11 | 3 11 1 2 6 3 . 2 Penetration Max 1 | . . . . . 1 . . Secondary Targets 4 | . 2 . . 2 . . . Max Gunslinging Chain 1 | . 1 . . 1 . . . Shots Hit Robots 268 | 9 43 . 5 152 57 . 2 Core Hits 229 | 3 35 . 4 161 26 . . Critical Kills 5 | . . . . . 5 . . Critical Parts Destroyed 18 | . . . . . 18 . . Critical Strikes 24 | . . . . . 24 . . Burn 1 | . . . . . 1 . . Destroy 23 | . . . . . 23 . . Melee Attacks . | . . . . . . . . Impact . | . . . . . . . . Slashing . | . . . . . . . . Piercing . | . . . . . . . . Sneak Attacks . | . . . . . . . . Combat Hostiles . | . . . . . . . . Follow-up Attacks . | . . . . . . . . Damage Inflicted 6187 | 79 524 . 72 3638 1845 . 29 Guns 3687 | 79 524 . 72 2633 350 . 29 Cannons 660 | . . . . . 660 . . Explosions 1785 | . . . . 1005 780 . . Melee . | . . . . . . . . Ramming 55 | . . . . . 55 . . Kinetic 1343 | 79 203 . . 348 713 . . Thermal 2496 | . 321 . 72 1650 453 . . Explosive 1504 | . . . . 880 624 . . Electromagnetic 789 | . . . . 760 . . 29 Impact . | . . . . . . . . Slashing . | . . . . . . . . Piercing . | . . . . . . . . Highest Corruption 5 | . . . . 1 5 5 5 Average Corruption 1 | . . . . 1 1 5 5 Corruption Purged . | . . . . . . . . Corruption Blocked . | . . . . . . . . Effects 17 | . . . . 9 7 . 1 Message Errors 1 | . . . . 1 . . . Matter Fused 4 | . . . . 2 1 . 1 Heat Flow Errors 1 | . . . . 1 . . . Energy Discharges 1 | . . . . 1 . . . Data Loss (minor) 4 | . . . . 2 2 . . Data Loss (major) 1 | . . . . . 1 . . Misfires 1 | . . . . 1 . . . Alerts 3 | . . . . . 3 . . Weapon Failures 1 | . . . . 1 . . . Overload Shots . | . . . . . . . . Overflow Damage 162 | . . . . 84 78 . . Projectiles 4 | . . . . . 4 . . Explosions 158 | . . . . 84 74 . . Melee . | . . . . . . . . Knockbacks 9 | . . . . . 9 . . Impact . | . . . . . . . . Kinetic 8 | . . . . . 8 . . Secondary 1 | . . . . . 1 . . Self-Inflicted Damage 86 | . . . . 12 74 . . Shots 4 | . . . . 1 3 . . Rammed 3 | . . . . . 3 . . Targets Rammed 3 | . . . . . 3 . . Kicked . | . . . . . . . . Crushed . | . . . . . . . . Highest Temperature 761 | . 761 16 109 366 396 . . Average Temperature 136 | . 251 9 55 86 137 . . Received Heat Transfer 1686 | . 105 24 39 792 714 . 12 Effects 28 | . 25 . . 1 2 . . Shutdowns 2 | . 2 . . . . . . Energy Bleed 4 | . 2 . . 1 1 . . Matter Decay 3 | . 3 . . . . . . Short Circuit 4 | . 3 . . . 1 . . Damage (minor) 3 | . 3 . . . . . . Damage (major) 10 | . 10 . . . . . . Damage (core) 2 | . 2 . . . . . . Siege Activations . | . . . . . . . . Robots Corrupted 2 | . . . . 2 . . . Combat Hostiles 1 | . . . . 1 . . . Parts Fried 4 | . . . . 4 . . . Impact Corruptions . | . . . . . . . . Robots Melted . | . . . . . . . . Combat Hostiles . | . . . . . . . . Parts Melted 2 | . . . . 1 1 . . Heat Transferred 3435 | . 405 . 85 2214 731 . . Parts Sabotaged . | . . . . . . . . Parts Stolen 1 | . . . . . . . 1 Parts Stripped . | . . . . . . . . Power Chain Reactions 3 | . . . . 3 . . . Alert | -11 -10 -10 -9 -8 -7 -7 -7 ------- Run | Yrd Mat Min Mat Mat Fac Low Low Peak Influence 383 | 10 254 116 44 383 327 . . Initial 133 | . 6 104 44 14 133 . . Average 152 | 4 166 108 24 187 154 . . Maximum Alert Level 1 | . 1 . . 1 1 . . Low Security (%) 75 | 100 56 100 100 58 86 . . Level 1 24 | . 43 . . 41 13 . . Level 2 . | . . . . . . . . Level 3 . | . . . . . . . . Level 4 . | . . . . . . . . Level 5 . | . . . . . . . . High Security . | . . . . . . . . Max Security . | . . . . . . . . Squads Dispatched 13 | . . . 1 9 3 . . Investigation 1 | . . . 1 . . . . Extermination 1 | . . . . . 1 . . Reinforcement 6 | . . . . 4 2 . . Assault . | . . . . . . . . Garrison 5 | . . . . 5 . . . Intercept . | . . . . . . . . Searches Triggered . | . . . . . . . . Construction Impeded 1 | . . . . 1 . . . Haulers Reinforced . | . . . . . . . . Active Scanning Responses . | . . . . . . . . Cargo Convoy Interrupts . | . . . . . . . . Stealth | -11 -10 -10 -9 -8 -7 -7 -7 --------- Run | Yrd Mat Min Mat Mat Fac Low Low Distress Signals 11 | . 3 . . 5 3 . . Communications Jammed 2 | . . . . . 2 . . Distress Signals 2 | . . . . . 2 . . Times Spotted 113 | . 16 4 5 51 31 1 5 Peak Tracking Total 12 | . 5 2 5 10 12 1 1 Tactical Retreats 10 | . . 1 . 2 7 . . Traps | -11 -10 -10 -9 -8 -7 -7 -7 ------- Run | Yrd Mat Min Mat Mat Fac Low Low Traps Triggered 2 | . . . . . 2 . . Indirectly . | . . . . . . . . Trap Hack Attempts . | . . . . . . . . Triggered . | . . . . . . . . Disarmed . | . . . . . . . . Reprogrammed . | . . . . . . . . Reused . | . . . . . . . . Traps Extracted . | . . . . . . . . Installed . | . . . . . . . . Triggered 3 | . . . . . . 3 . Machines | -11 -10 -10 -9 -8 -7 -7 -7 ---------- Run | Yrd Mat Min Mat Mat Fac Low Low Machines Disabled 8 | . 1 . . 4 3 . . Max in Single Turn 2 | . 1 . . 1 2 . . Machines Repaired . | . . . . . . . . Machines Dismantled . | . . . . . . . . Machines Sabotaged . | . . . . . . . . Overloaded Fab Kills . | . . . . . . . . Hacking | -11 -10 -10 -9 -8 -7 -7 -7 --------- Run | Yrd Mat Min Mat Mat Fac Low Low Machines Accessed 14 | . 1 . 3 4 6 . . Terminals 10 | . 1 . 3 3 3 . . Fabricators 3 | . . . . . 3 . . Repair Stations 1 | . . . . 1 . . . Recycling Units . | . . . . . . . . Scanalyzers . | . . . . . . . . Garrison Access . | . . . . . . . . Total Hacks 41 | . 2 . 12 16 11 . . Successful 20 | . 1 . 6 11 2 . . Failed 21 | . 1 . 6 5 9 . . Catastrophic 4 | . 1 . . 2 1 . . Database Lockouts . | . . . . . . . . Manual 25 | . 2 . 11 10 2 . . Terminals 34 | . 2 . 12 13 7 . . Fabricators 4 | . . . . . 4 . . Repair Stations 3 | . . . . 3 . . . Recycling Units . | . . . . . . . . Scanalyzers . | . . . . . . . . Garrison Access . | . . . . . . . . Terminal Hacks 9 | . . . 3 5 1 . . Part Schematic 1 | . . . 1 . . . . Robot Analysis 1 | . . . 1 . . . . Prototype ID Bank 1 | . . . . 1 . . . Unreport Threat 3 | . . . 1 2 . . . Locate Traps 1 | . . . . . 1 . . Transport Status 1 | . . . . 1 . . . Registered Components 1 | . . . . 1 . . . Fabricator Hacks 1 | . . . . . 1 . . Build 1 | . . . . . 1 . . Repair Station Hacks 3 | . . . . 3 . . . Scan Component 1 | . . . . 1 . . . Repair 1 | . . . . 1 . . . Refit 1 | . . . . 1 . . . Recycling Unit Hacks . | . . . . . . . . Scanalyzer . | . . . . . . . . Garrison Access Hacks . | . . . . . . . . Unauthorized Hacks 7 | . 1 . 3 3 . . . Terminals 7 | . 1 . 3 3 . . . Botnet 6 | . 1 . 2 3 . . . Operators 1 | . . . 1 . . . . Fabricators . | . . . . . . . . Repair Stations . | . . . . . . . . Recycling Units . | . . . . . . . . Scanalyzers . | . . . . . . . . Garrison Access . | . . . . . . . . Data Cores Recovered . | . . . . . . . . Used . | . . . . . . . . Hacking Detections 14 | . 1 . 3 4 6 . . Full Trace Events 1 | . . . 1 . . . . Feedback Events . | . . . . . . . . Feedback Blocked . | . . . . . . . . Robot Schematics Acquired . | . . . . . . . . Robots Built . | . . . . . . . . Authchips . | . . . . . . . . Time . | . . . . . . . . Total Robot Build Rating . | . . . . . . . . Part Schematics Acquired 1 | . . . 1 . . . . Parts Built 2 | . . . . . 2 . . Authchips . | . . . . . . . . Time 117 | . . . . . 117 . . Total Part Build Rating 14 | . . . . . 14 . . Parts Repaired 1 | . . . . 1 . . . Time 26 | . . . . 26 . . . Parts Recycled . | . . . . . . . . Recycled Matter . | . . . . . . . . Retrieved Matter . | . . . . . . . . Retrieved Components . | . . . . . . . . Parts Scanalyzed . | . . . . . . . . Part Schematics Acquired . | . . . . . . . . Parts Damaged . | . . . . . . . . Bothacking | -11 -10 -10 -9 -8 -7 -7 -7 ------------ Run | Yrd Mat Min Mat Mat Fac Low Low Used RIF Installer . | . . . . . . . . Robots Hacked . | . . . . . . . . Non-combat . | . . . . . . . . Combat . | . . . . . . . . Robot Hacks Applied . | . . . . . . . . Relay Couplers Released . | . . . . . . . . Fabnet Peak Effective % . | . . . . . . . . Robots Rewired . | . . . . . . . . Allies Hacked . | . . . . . . . . Hacks Repelled . | . . . . . . . . Allies | -11 -10 -10 -9 -8 -7 -7 -7 -------- Run | Yrd Mat Min Mat Mat Fac Low Low Total Allies . | . . . . . . . . Largest Group . | . . . . . . . . Highest-Rated Group . | . . . . . . . . Highest-Rated Ally . | . . . . . . . . Total Orders . | . . . . . . . . Ally Attacks . | . . . . . . . . Total Damage . | . . . . . . . . Kills . | . . . . . . . . Allies Corrupted . | . . . . . . . . Allies Melted . | . . . . . . . . Intel | -11 -10 -10 -9 -8 -7 -7 -7 ------- Run | Yrd Mat Min Mat Mat Fac Low Low Robot Analysis Total 1 | . . . 1 . . . . Derelict Logs Recovered 2 | . . 1 . . . 1 . Drone Launches . | . . . . . . . . Drone Recoveries . | . . . . . . . . Exploration | -11 -10 -10 -9 -8 -7 -7 -7 ------------- Run | Yrd Mat Min Mat Mat Fac Low Low Turns Passed 2669 | 91 223 270 124 1044 814 63 40 Spaces Moved 2198 | 87 135 276 214 639 633 145 69 Core 128 | 82 37 . . 6 3 . . Treads 12 | . . . . 12 . . . Legs 212 | . . . . 212 . . . Wheels 686 | 5 9 . . 207 465 . . Hover 379 | . . . . . 165 145 69 Flight 781 | . 89 276 214 202 . . . Fastest Speed 34 | 50 37 37 34 34 40 40 40 Average Speed 67 | 52 45 37 34 94 81 40 45 Slowest Speed 360 | 100 100 37 34 360 250 40 111 Overloaded Moves 15 | . . . . . . . 15 Propulsion Burnouts . | . . . . . . . . Robots Hopped 11 | . 1 5 4 1 . . . Cave-ins Triggered . | . . . . . . . . Exploration Rate (%) 28 | 4 26 49 20 56 20 36 14 Regions Visited 7 Branch Regions 3 Pre-discovered Areas . | . . . . . . . . Known Exits Taken . | . . . . . . . . Unknown Exits Taken 7 | 1 1 1 1 1 1 1 . Scrap Searched 2 | . . 1 . . . 1 . Spaces Dug 7 | . . 2 5 . . . . Terrain Destroyed 98 | . . 2 5 40 51 . . Melee . | . . . . . . . . Projectile 7 | . . 2 5 . . . . AOE 91 | . . . . 40 51 . . Terrain Rammed . | . . . . . . . . Walls Destroyed . | . . . . . . . . Machines Disabled . | . . . . . . . . Actions | -11 -10 -10 -9 -8 -7 -7 -7 --------- Run | Yrd Mat Min Mat Mat Fac Low Low Total 3019 | 114 238 433 240 918 855 148 73 Wait 386 | . 26 145 14 74 127 . . Move 2169 | 86 132 265 205 636 632 144 69 Hop 11 | . 1 5 4 1 . . . Pick Up 38 | 5 7 3 1 14 6 2 . Fast Attach 56 | 4 10 3 . 27 10 2 . Attach 30 | 2 3 4 4 6 11 . . Detach 18 | 1 3 2 1 7 4 . . Swap 28 | . 1 . 1 21 5 . . Drop 52 | 1 12 3 . 30 6 . . Fire 228 | 15 43 3 10 102 51 . 4 Melee . | . . . . . . . . Ram 3 | . . . . . 3 . . Kick . | . . . . . . . . Crush . | . . . . . . . . Escape Stasis . | . . . . . . . . Rewire . | . . . . . . . . Trap . | . . . . . . . . Miscellaneous . | . . . . . . . . Route ------- -11/Scrapyard -10/Materials -10/Mines -9/Materials -8/Materials (discovered 2 exits: *Fac x2) -7/Factory -7/Lower Caves -7/Lower Caves (discovered 1 exit: [*Fac]) History --------- Turn | Location | Event 18 | -11/Scrapyard | Discovered new exit (range 16) 92 | -11/Scrapyard | Entered Materials 183 | -10/Materials | Core integrity fell below 50% 256 | -10/Materials | Discovered new exit (range 8) 300 | -10/Materials | Build established: Mutant 315 | -10/Materials | Entered Mines 324 | -10/Mines | Received a Rocket Launcher from a helpful Derelict 346 | -10/Mines | Learned Materials trap positions 405 | -10/Mines | Found DCF Scrap (12 items) 497 | -10/Mines | Discovered new exit (range 11) 585 | -10/Mines | Entered Materials 585 | -9/Materials | Evolved 2 slots: Propulsion x1, Utility x1 586 | -9/Materials | Loaded intel: 21 trap records 708 | -9/Materials | Discovered new exit (range 4) 709 | -9/Materials | Entered another Materials area 709 | -8/Materials | Evolved 2 slots: Propulsion x1, Utility x1 749 | -8/Materials | Repaired Seismic Detector 821 | -8/Materials | Garrison activated, responded to threat 923 | -8/Materials | Garrison activated, responded to threat 934 | -8/Materials | Lost 5 parts (1p3n1u) 1023 | -8/Materials | Destroyed 8 combat bots 1029 | -8/Materials | Lost 6 parts (1p2n1u2w) 1092 | -8/Materials | Core integrity fell below 50% 1156 | -8/Materials | Discovered new exit (range 8) 1249 | -8/Materials | Garrison activated, responded to threat 1328 | -8/Materials | Lost 4 parts (2n1u1w) 1417 | -8/Materials | Build established: Scavenger-Mutant 1540 | -8/Materials | Discovered new exit (range 16) 1725 | -8/Materials | Core integrity fell below 20% 1748 | -8/Materials | Build established: Mutant 1753 | -8/Materials | Entered Factory 1753 | -7/Factory | Evolved 2 slots: Utility x2 1981 | -7/Factory | Fabricated Hyp. Mass Driver (x2) 2455 | -7/Factory | Core integrity fell below 50% 2498 | -7/Factory | Lost 14 parts (2p3n5u4w) 2521 | -7/Factory | Core integrity fell below 20% 2563 | -7/Factory | Discovered new exit (range 12) 2567 | -7/Factory | Entered Lower Caves 2582 | -7/Lower Caves | Learned Factory stockpile data 2627 | -7/Lower Caves | Discovered new exit (range 8) 2630 | -7/Lower Caves | Entered another Lower Caves area 2668 | -7/Lower Caves | Discovered new exit (range 12) 2670 | -7/Lower Caves | Destroyed by Y-54 Guardian with Flak Gun Last Messages --------------- 02613_ Found Gauss Cannon. 02613_ Found Core Analyzer. 02613_ Found 56 Matter. 02614_ Acquired Core Analyzer. 02615_ Acquired Mak. Salvage Targeting Computer. 02617_ Acquired 56 matter. 02618_ Acquired Gauss Cannon. 02618_ 5H-JWS(k) breaks down the debris. 02619_ Acquired Recalibrator. 02627_ EXIT=FOUND LOCATION=UNKNOWN GOAL=ESCAPE 02645_ Cld. Airjet ripped off. 02654_ Penetrated by Slug. 02657_ Slug penetrates Wall. 02660_ Cld. Airjet destroyed. 02661_ System corrupted: Matter fused (-9). 02665_ Slug penetrates Wall. 02668_ EXIT=FOUND 02670_ Cld. Airjet destroyed. Map ----- +----------------------------------------------------+ | | | | | | | ?????????????????????????????????????????????????? | | ?????????????????????????????????????????????????? | | ?????????????????????????????????????????????????? | | ?????????????????????????????????????????????????? | | ?????????????????????????????????????????????????? | | ?????????????????????????????????????????????????? | | ?????????????????????????????????????????????????? | | ?????????????????????????????????????????????????? | | ?????????????????????????????????????????????????? | | ?????????????????????????????????????????????????? | | ?????????????????????????????????????????????????? | | ?????????????????????????????????????????????????? | | ?????????????????????????????????????????????????? | | ?????????????????????????????????????????????????? | | ????#####?????????????#??????????????????????????? | | ???## ###??????????? ###???#######?????????????? | | ??## ##?????????? ?? ##????????????? | | ??# #?????????? ??? #????????????? | | ??# ###????????# ?? #?????????????? | | ??# ##???????# #?? #?????????????? | | ??# ##??????# #? ##????????????? | | ?## ##???### ## #????????????? | | ## ##??# @ #????????? | | #??# #????????? | | ## ##??# ##### ????????? | | ##?##???# #????b ?????????? | | ##?###???# ###??? < ?????????? | | ##?## ##??# #???? Y ??????????? | | # #### #### ##?????b ??????????? | | # ## ## ##?????? ??????????? | | ## ## ##??????? ###???????????? | | ?# ### ##???????####?????????????? | | ?# #?# ##### ### ##???????????????????????? | | ?# #?## ##???###?# #???????????????????????? | | ?# #??###???????# #?????????????????????? | | ?# ##???????????# ##?????????????????????? | | ?# #???????????## ###??????????????????????? | | ## #####?????????#######????????????????????????? | | # ## #????????????????????????????????????????? | | #????????????????????????????????????????? | | ##????????????????????????????????????????? | | #####?????????????????????????????????????????? | | #?????????????????????????????????????????????? | | ?????????????????????????????????????????????? | | ?????????????????????????????????????????????? | | ##?????????????????????????????????????????????? | | ##???????????????????????????????????????????????? | +----------------------------------------------------+ Best States ------------- Heat Dissipation 56 Energy Generation 16 Energy Capacity 290 Matter Stores 300 Matter Capacity 300 Sight Range 16 Terrain Scan Density 10 Jamming Range 12 Base Temperature (-) 100 Armor Coverage 300 Evasion (%) 63 Targeting Accuracy 16 Core Analysis 6 Armor Integrity Analysis 30 Recoil Reduction 1 Salvage Targeting 4 Offensive Hacking 10 Item Schematics ----------------- VTOL Module | -9/Materials | Hacked Robot Schematics ------------------ None Fabricated ------------ Hyp. Mass Driver | x2 | -7/Factory | Preloaded Alien Tech Used ----------------- None Achievements -------------- None Challenges ------------ None Game ------ Seed HoverBraceExtractor Manual? 0 Play Time 00:42:27 Cumulative 208.3 hours Start 2024.09.28 @ 20:35:01 End 2024.09.29 @ 14:06:28 Sessions 3 Manual Loads 0 Difficulty Rogue Special Mode None Game No. 210 Rogue 210 Adventurer 0 Explorer 0 Win Type - Total 0 Types 0/0/0/0/0/0/0/0/0 Lore% 23 Gallery% 59 Achievement% 44 Wizard Run 0 Options --------- Layout 0 ASCII 0 Keyboard 1 Movement Vi Keybinds 0 Fullscreen 1 Font 24/Smallcaps Map View 76x50 Zoom Use 0% Tactical HUD 1 Map Filters NONE Filters NONE Steam 1 RUN: 74a303bc-8f99-4f0e-aea0-dd76f7cdec8c